[Event "*** SCC Grand Prix: Titled Tuesday Blitz"]
[Site "Chess.com"]
[Date "2020.08.25"]
[Round "4"]
[White "The_Chess_Coach"]
[Black "x-6099009240"]
[Result "0-1"]
[WhiteElo "2195"]
[BlackElo "2417"]
[TimeControl "180+1"]
[EndTime "10:37:54 PDT"]
[Termination "x-6099009240 won by resignation"]

1. d4 {[%clk 0:03:00.9]} 1... Nf6 {[%clk 0:02:59.2]} 2. c4 {[%clk 0:03:00.6]}
2... e6 {[%clk 0:02:59.6]} 3. Nc3 {[%clk 0:03:00.6]} 3... Bb4 {[%clk 0:02:59.3]}
4. e3 {[%clk 0:03:00.7]} 4... b6 {[%clk 0:02:59.9]} 5. Bd3 {[%clk 0:02:59.2]}
5... Bb7 {[%clk 0:03:00.4]} 6. Nf3 {[%clk 0:02:55.7]} 6... Ne4 {[%clk
0:03:00.7]} 7. Qc2 {[%clk 0:02:50.9]} 7... f5 {[%clk 0:03:00.8]} 8. O-O {[%clk
0:02:50.1]} 8... Bxc3 {[%clk 0:03:00.9]} 9. bxc3 {[%clk 0:02:51]} 9... O-O
{[%clk 0:03:01.4]} 10. Nd2 {[%clk 0:02:44.2]} 10... Qh4 {[%clk 0:03:00.6]} 11.
f3 {[%clk 0:02:32.5]} 11... Nxd2 {[%clk 0:03:00.6]} 12. Qxd2 {[%clk 0:02:19.3]}
12... d6 {[%clk 0:03:01.2]} 13. Qe2 {[%clk 0:02:12.6]} 13... Nd7 {[%clk
0:02:59.3]} 14. Bd2 {[%clk 0:02:06.8]} 14... e5 {[%clk 0:02:56.5]} 15. e4 {[%clk
0:01:56.2]} 15... f4 {[%clk 0:02:56.8]} 16. Be1 {[%clk 0:01:51.6]} 16... Qg5
{[%clk 0:02:55.4]} 17. Bf2 {[%clk 0:01:46.2]} 17... Rf6 {[%clk 0:02:54.7]} 18.
Kh1 {[%clk 0:01:42.5]} 18... Rg6 {[%clk 0:02:54.5]} 19. Bg1 {[%clk 0:01:41.2]}
19... Re8 {[%clk 0:02:46.1]} 20. Rab1 {[%clk 0:01:27.3]} 20... Nf6 {[%clk
0:02:46.2]} 21. c5 {[%clk 0:00:07.9]} 21... Nh5 {[%clk 0:02:46.3]} 22. Bc4+
{[%clk 0:00:07.6]} 22... Kh8 {[%clk 0:02:46.1]} 23. Rfd1 {[%clk 0:00:01.9]}
23... Ng3+ {[%clk 0:02:44]} 24. hxg3 {[%clk 0:00:02.7]} 24... Qh5+ {[%clk
0:02:44.6]} 25. Bh2 {[%clk 0:00:01.5]} 25... fxg3 {[%clk 0:02:45.5]} 26. Kg1
{[%clk 0:00:02.4]} 26... Qxh2+ {[%clk 0:02:45.7]} 0-1

[Event "*** SCC Grand Prix: Titled Tuesday Blitz"]
[Site "Chess.com"]
[Date "2020.08.25"]
[Round "4"]
[White "Alexsur1981"]
[Black "LiemLe"]
[Result "0-1"]
[WhiteElo "2651"]
[BlackElo "2932"]
[TimeControl "180+1"]
[EndTime "10:37:58 PDT"]
[Termination "LiemLe won by resignation"]

1. e4 {[%clk 0:03:00.9]} 1... c6 {[%clk 0:02:59.8]} 2. Nc3 {[%clk 0:03:00]} 2...
d5 {[%clk 0:03:00.7]} 3. Qe2 {[%clk 0:03:00.4]} 3... d4 {[%clk 0:02:53.5]} 4.
Nd1 {[%clk 0:02:59.9]} 4... e5 {[%clk 0:02:51.8]} 5. g3 {[%clk 0:02:59.8]} 5...
Bd6 {[%clk 0:02:52.1]} 6. d3 {[%clk 0:02:59.5]} 6... c5 {[%clk 0:02:51.1]} 7. f4
{[%clk 0:02:59.1]} 7... Nc6 {[%clk 0:02:36.6]} 8. Bh3 {[%clk 0:02:57.5]} 8...
Nge7 {[%clk 0:02:13]} 9. Bxc8 {[%clk 0:02:56.1]} 9... Qxc8 {[%clk 0:02:08.9]}
10. f5 {[%clk 0:02:56.7]} 10... Qd7 {[%clk 0:01:54.6]} 11. Nf3 {[%clk
0:02:56.5]} 11... O-O-O {[%clk 0:01:54.8]} 12. O-O {[%clk 0:02:56]} 12... f6
{[%clk 0:01:54.3]} 13. a3 {[%clk 0:02:43]} 13... g6 {[%clk 0:01:53]} 14. Nh4
{[%clk 0:02:43.2]} 14... g5 {[%clk 0:01:34.7]} 15. Nf3 {[%clk 0:02:43.1]} 15...
h5 {[%clk 0:01:35.2]} 16. Nf2 {[%clk 0:02:41.6]} 16... Kb8 {[%clk 0:01:34.8]}
17. Bd2 {[%clk 0:02:40.7]} 17... Rc8 {[%clk 0:01:34.1]} 18. c4 {[%clk
0:02:35.9]} 18... dxc3 {[%clk 0:01:32.5]} 19. bxc3 {[%clk 0:02:36.1]} 19... c4
{[%clk 0:01:26.7]} 20. d4 {[%clk 0:02:34.7]} 20... g4 {[%clk 0:01:26.6]} 21. Nh4
{[%clk 0:02:27.6]} 21... exd4 {[%clk 0:01:26.6]} 22. cxd4 {[%clk 0:02:22.1]}
22... Nxd4 {[%clk 0:01:27.5]} 23. Qd1 {[%clk 0:02:22.5]} 23... Be5 {[%clk
0:01:21.7]} 24. Rc1 {[%clk 0:02:09.4]} 24... Rhd8 {[%clk 0:01:16.9]} 25. Bf4
{[%clk 0:02:05.9]} 25... Qd6 {[%clk 0:01:12]} 26. Bxe5 {[%clk 0:02:05.2]} 26...
Qxe5 {[%clk 0:01:12.9]} 27. Qa4 {[%clk 0:02:00.9]} 27... Ne2+ {[%clk 0:01:10.9]}
28. Kg2 {[%clk 0:01:53.2]} 28... Nxc1 {[%clk 0:01:11.8]} 29. Rxc1 {[%clk
0:01:53.8]} 29... Rd2 {[%clk 0:01:09.3]} 30. Rxc4 {[%clk 0:01:53.3]} 30... Qb2
{[%clk 0:01:06.1]} 31. Rxc8+ {[%clk 0:01:49.4]} 31... Nxc8 {[%clk 0:01:07]} 0-1

[Event "*** SCC Grand Prix: Titled Tuesday Blitz"]
[Site "Chess.com"]
[Date "2020.08.25"]
[Round "4"]
[White "Annagozel"]
[Black "OparinGrigoriy"]
[Result "0-1"]
[WhiteElo "1854"]
[BlackElo "2966"]
[TimeControl "180+1"]
[EndTime "10:38:06 PDT"]
[Termination "OparinGrigoriy won by resignation"]

1. e4 {[%clk 0:03:00.9]} 1... c5 {[%clk 0:02:58.8]} 2. Nf3 {[%clk 0:02:59.7]}
2... d6 {[%clk 0:02:59.5]} 3. d4 {[%clk 0:02:57.3]} 3... cxd4 {[%clk 0:03:00.4]}
4. Nxd4 {[%clk 0:02:55.9]} 4... Nf6 {[%clk 0:03:01.1]} 5. Nc3 {[%clk 0:02:54.9]}
5... Nc6 {[%clk 0:03:01.7]} 6. Be2 {[%clk 0:02:52.9]} 6... Bd7 {[%clk
0:03:02.4]} 7. Be3 {[%clk 0:02:51]} 7... g6 {[%clk 0:03:02.9]} 8. O-O {[%clk
0:02:50.1]} 8... Bg7 {[%clk 0:03:03.6]} 9. f3 {[%clk 0:02:46.4]} 9... O-O {[%clk
0:03:04.1]} 10. Qd2 {[%clk 0:02:45.1]} 10... Rc8 {[%clk 0:03:04.6]} 11. Rab1
{[%clk 0:02:26.9]} 11... Ne5 {[%clk 0:03:02.9]} 12. Nd5 {[%clk 0:02:22.7]} 12...
Nxd5 {[%clk 0:03:00.3]} 13. exd5 {[%clk 0:02:21.9]} 13... Nc4 {[%clk 0:03:00.8]}
14. Bxc4 {[%clk 0:02:20]} 14... Rxc4 {[%clk 0:03:01.7]} 15. b3 {[%clk
0:02:19.3]} 15... Rc8 {[%clk 0:02:58.4]} 16. c4 {[%clk 0:02:19.1]} 16... a6
{[%clk 0:02:58.2]} 17. a4 {[%clk 0:02:16.7]} 17... Re8 {[%clk 0:02:56.7]} 18. a5
{[%clk 0:01:51.6]} 18... e5 {[%clk 0:02:56.1]} 19. Nc2 {[%clk 0:00:50.9]} 19...
f5 {[%clk 0:02:48.9]} 20. Bb6 {[%clk 0:00:42.3]} 20... Qf6 {[%clk 0:02:48.7]}
21. Rbe1 {[%clk 0:00:37]} 21... f4 {[%clk 0:02:49]} 22. Na3 {[%clk 0:00:25.4]}
22... g5 {[%clk 0:02:48.6]} 23. h3 {[%clk 0:00:20.4]} 23... Bf5 {[%clk
0:02:48.5]} 24. Nb1 {[%clk 0:00:19.5]} 24... Qg6 {[%clk 0:02:44.8]} 25. Nc3
{[%clk 0:00:17.8]} 25... h5 {[%clk 0:02:45.4]} 26. Ne4 {[%clk 0:00:15.7]} 26...
g4 {[%clk 0:02:45.7]} 27. fxg4 {[%clk 0:00:11]} 27... hxg4 {[%clk 0:02:46.6]}
28. hxg4 {[%clk 0:00:10.2]} 28... Bxe4 {[%clk 0:02:46.8]} 29. Qe2 {[%clk
0:00:03.8]} 29... Bd3 {[%clk 0:02:46.9]} 0-1

[Event "*** SCC Grand Prix: Titled Tuesday Blitz"]
[Site "Chess.com"]
[Date "2020.08.25"]
[Round "4"]
[White "ruslansezdbekov"]
[Black "SHIVACalypso"]
[Result "1-0"]
[WhiteElo "2567"]
[BlackElo "2324"]
[TimeControl "180+1"]
[EndTime "10:38:13 PDT"]
[Termination "ruslansezdbekov won by resignation"]

1. d4 {[%clk 0:03:00.9]} 1... e6 {[%clk 0:03:00]} 2. c4 {[%clk 0:03:00.4]} 2...
Nf6 {[%clk 0:03:00.1]} 3. Nc3 {[%clk 0:03:00.2]} 3... Bb4 {[%clk 0:03:00.5]} 4.
Qc2 {[%clk 0:02:59.9]} 4... b6 {[%clk 0:03:00.6]} 5. a3 {[%clk 0:02:54.6]} 5...
Bxc3+ {[%clk 0:02:59.2]} 6. Qxc3 {[%clk 0:02:54.4]} 6... Bb7 {[%clk 0:02:59.8]}
7. Bg5 {[%clk 0:02:53.9]} 7... h6 {[%clk 0:02:59.3]} 8. Bxf6 {[%clk 0:02:42.9]}
8... Qxf6 {[%clk 0:03:00.2]} 9. f3 {[%clk 0:02:43.3]} 9... d6 {[%clk 0:02:56.4]}
10. e3 {[%clk 0:02:38.1]} 10... Nd7 {[%clk 0:02:56.5]} 11. Bd3 {[%clk 0:02:37]}
11... O-O {[%clk 0:02:56.4]} 12. Ne2 {[%clk 0:02:36.4]} 12... c5 {[%clk
0:02:55.9]} 13. O-O {[%clk 0:02:35.7]} 13... Rac8 {[%clk 0:02:53.6]} 14. Be4
{[%clk 0:02:18.8]} 14... d5 {[%clk 0:02:51.6]} 15. cxd5 {[%clk 0:02:16.3]} 15...
exd5 {[%clk 0:02:43.3]} 16. Bd3 {[%clk 0:02:13.7]} 16... cxd4 {[%clk 0:02:42.9]}
17. Qxd4 {[%clk 0:02:12.2]} 17... Qxd4 {[%clk 0:02:42.7]} 18. exd4 {[%clk
0:02:05.7]} 18... Rfe8 {[%clk 0:02:31.1]} 19. Kf2 {[%clk 0:01:58.2]} 19... Re7
{[%clk 0:02:28.1]} 20. Nf4 {[%clk 0:01:54.6]} 20... Rce8 {[%clk 0:02:26.4]} 21.
Rac1 {[%clk 0:01:53.4]} 21... Nf6 {[%clk 0:02:25.6]} 22. g4 {[%clk 0:01:49.2]}
22... g5 {[%clk 0:02:24.6]} 23. Ng2 {[%clk 0:01:48.6]} 23... Kg7 {[%clk
0:02:15.3]} 24. h4 {[%clk 0:01:43.4]} 24... Nh7 {[%clk 0:02:08.2]} 25. hxg5
{[%clk 0:01:39.9]} 25... Nxg5 {[%clk 0:02:07.1]} 26. Nh4 {[%clk 0:01:29.4]}
26... Kf6 {[%clk 0:02:01.5]} 27. Nf5 {[%clk 0:01:25.3]} 27... Re6 {[%clk
0:02:01.3]} 28. Rh1 {[%clk 0:01:22.6]} 28... Rh8 {[%clk 0:01:47.2]} 29. Rc7
{[%clk 0:01:21.7]} 29... Bc8 {[%clk 0:01:41.2]} 30. Rxc8 {[%clk 0:01:17.6]} 1-0

[Event "*** SCC Grand Prix: Titled Tuesday Blitz"]
[Site "Chess.com"]
[Date "2020.08.25"]
[Round "4"]
[White "Dr_crypt"]
[Black "Kildepiotr"]
[Result "0-1"]
[WhiteElo "2373"]
[BlackElo "2629"]
[TimeControl "180+1"]
[EndTime "10:38:14 PDT"]
[Termination "Kildepiotr won by resignation"]

1. d4 {[%clk 0:03:00.9]} 1... c5 {[%clk 0:02:59.2]} 2. d5 {[%clk 0:03:00.4]}
2... e5 {[%clk 0:02:59.4]} 3. Nc3 {[%clk 0:02:58]} 3... d6 {[%clk 0:02:59.7]} 4.
e4 {[%clk 0:02:57.7]} 4... Be7 {[%clk 0:03:00.2]} 5. b3 {[%clk 0:02:55.2]} 5...
Bg5 {[%clk 0:02:59.8]} 6. Bb2 {[%clk 0:02:54.9]} 6... Ne7 {[%clk 0:02:59.9]} 7.
g3 {[%clk 0:02:54.1]} 7... O-O {[%clk 0:02:59.3]} 8. h4 {[%clk 0:02:53.9]} 8...
Bh6 {[%clk 0:02:59.3]} 9. Bg2 {[%clk 0:02:53.4]} 9... f5 {[%clk 0:02:52.8]} 10.
f3 {[%clk 0:02:23.2]} 10... Na6 {[%clk 0:02:46]} 11. Nge2 {[%clk 0:02:22]} 11...
Nc7 {[%clk 0:02:36.2]} 12. a4 {[%clk 0:02:21.5]} 12... a6 {[%clk 0:02:32.7]} 13.
a5 {[%clk 0:02:20.9]} 13... Nb5 {[%clk 0:02:32.7]} 14. Qd3 {[%clk 0:02:19.4]}
14... Nd4 {[%clk 0:02:24.6]} 15. Nxd4 {[%clk 0:02:17.6]} 15... cxd4 {[%clk
0:02:20.6]} 16. Ne2 {[%clk 0:02:17.1]} 16... fxe4 {[%clk 0:02:19.8]} 17. fxe4
{[%clk 0:02:15.9]} 17... Bd7 {[%clk 0:02:04.8]} 18. c4 {[%clk 0:02:11.6]} 18...
dxc3 {[%clk 0:02:03.4]} 19. Nxc3 {[%clk 0:02:11.4]} 19... Rc8 {[%clk 0:01:54.5]}
20. Rf1 {[%clk 0:02:04.6]} 20... Bg4 {[%clk 0:01:49.3]} 21. Rxf8+ {[%clk
0:02:00.1]} 21... Qxf8 {[%clk 0:01:50.2]} 22. Qf1 {[%clk 0:01:58.1]} 22... Qd8
{[%clk 0:01:43.8]} 23. Bf3 {[%clk 0:01:54.4]} 23... Qd7 {[%clk 0:01:40.3]} 24.
Qe2 {[%clk 0:01:51.2]} 24... Bxf3 {[%clk 0:01:39.4]} 25. Qxf3 {[%clk 0:01:50.9]}
25... Qh3 {[%clk 0:01:36.5]} 26. Ke2 {[%clk 0:01:42.8]} 26... Rf8 {[%clk
0:01:34.8]} 27. Rh1 {[%clk 0:01:34.1]} 27... Qc8 {[%clk 0:01:26.8]} 28. Qh5
{[%clk 0:01:19.9]} 28... Qc5 {[%clk 0:01:22.9]} 29. Rf1 {[%clk 0:01:17.5]} 29...
Qe3+ {[%clk 0:01:22.3]} 0-1

[Event "*** SCC Grand Prix: Titled Tuesday Blitz"]
[Site "Chess.com"]
[Date "2020.08.25"]
[Round "4"]
[White "FairChess_on_YouTube"]
[Black "Beltraxtor"]
[Result "1-0"]
[WhiteElo "2981"]
[BlackElo "2533"]
[TimeControl "180+1"]
[EndTime "10:38:28 PDT"]
[Termination "FairChess_on_YouTube won by resignation"]

1. e4 {[%clk 0:03:00.9]} 1... c5 {[%clk 0:02:55.6]} 2. Nc3 {[%clk 0:02:58.6]}
2... Nc6 {[%clk 0:02:52.7]} 3. Nge2 {[%clk 0:02:56.6]} 3... e6 {[%clk
0:02:50.8]} 4. d4 {[%clk 0:02:56.1]} 4... cxd4 {[%clk 0:02:51.4]} 5. Nxd4 {[%clk
0:02:57]} 5... Qc7 {[%clk 0:02:52.2]} 6. Be3 {[%clk 0:02:55.4]} 6... a6 {[%clk
0:02:52.3]} 7. Qf3 {[%clk 0:02:55.5]} 7... Bd6 {[%clk 0:02:49.1]} 8. O-O-O
{[%clk 0:02:54.3]} 8... Be5 {[%clk 0:02:48.7]} 9. g3 {[%clk 0:02:51.2]} 9...
Nge7 {[%clk 0:02:45.8]} 10. Qg2 {[%clk 0:02:48.2]} 10... b5 {[%clk 0:02:43.9]}
11. f4 {[%clk 0:02:42.1]} 11... Bxd4 {[%clk 0:02:41.3]} 12. Bxd4 {[%clk
0:02:43]} 12... Nxd4 {[%clk 0:02:42]} 13. Rxd4 {[%clk 0:02:43.7]} 13... O-O
{[%clk 0:02:30.2]} 14. Qd2 {[%clk 0:02:36.8]} 14... b4 {[%clk 0:02:08.6]} 15.
Rxb4 {[%clk 0:02:33.4]} 15... a5 {[%clk 0:01:54.3]} 16. Rd4 {[%clk 0:02:28.8]}
16... Rb8 {[%clk 0:01:42.4]} 17. Bb5 {[%clk 0:02:25.4]} 17... d5 {[%clk
0:01:35]} 18. a4 {[%clk 0:02:21.2]} 18... dxe4 {[%clk 0:01:30.7]} 19. Nxe4
{[%clk 0:02:19.2]} 19... Nd5 {[%clk 0:01:20.5]} 20. Rc4 {[%clk 0:02:18.3]} 20...
Qa7 {[%clk 0:01:16.6]} 21. Qd4 {[%clk 0:02:16.7]} 21... Qe7 {[%clk 0:01:14.3]}
22. Qc5 {[%clk 0:02:16.3]} 22... Bb7 {[%clk 0:01:00.6]} 23. Qxe7 {[%clk
0:02:13.2]} 23... Nxe7 {[%clk 0:01:01.5]} 24. Re1 {[%clk 0:02:11.6]} 24... Rfc8
{[%clk 0:00:51.2]} 25. Nd6 {[%clk 0:02:08.3]} 25... Rxc4 {[%clk 0:00:50.9]} 26.
Nxc4 {[%clk 0:02:09.2]} 26... Bc6 {[%clk 0:00:48.6]} 27. Re5 {[%clk 0:02:06.1]}
27... Rc8 {[%clk 0:00:20.5]} 28. Rc5 {[%clk 0:01:59.6]} 1-0

[Event "*** SCC Grand Prix: Titled Tuesday Blitz"]
[Site "Chess.com"]
[Date "2020.08.25"]
[Round "4"]
[White "lucachess49"]
[Black "Evgeny81"]
[Result "0-1"]
[WhiteElo "2477"]
[BlackElo "2696"]
[TimeControl "180+1"]
[EndTime "10:38:30 PDT"]
[Termination "Evgeny81 won by resignation"]

1. d4 {[%clk 0:03:00.9]} 1... Nf6 {[%clk 0:02:59.3]} 2. c4 {[%clk 0:03:00.3]}
2... e5 {[%clk 0:02:59.6]} 3. dxe5 {[%clk 0:02:59.9]} 3... Ne4 {[%clk
0:03:00.2]} 4. Nf3 {[%clk 0:02:55.7]} 4... Nc6 {[%clk 0:03:00.1]} 5. e3 {[%clk
0:02:49.9]} 5... d6 {[%clk 0:03:00]} 6. Bd3 {[%clk 0:02:43.7]} 6... Nc5 {[%clk
0:02:59.1]} 7. Bc2 {[%clk 0:02:43.8]} 7... dxe5 {[%clk 0:02:45.8]} 8. Qxd8+
{[%clk 0:02:42.8]} 8... Kxd8 {[%clk 0:02:46.7]} 9. a3 {[%clk 0:02:36.7]} 9... a5
{[%clk 0:02:45.1]} 10. Ke2 {[%clk 0:02:22.4]} 10... Be6 {[%clk 0:02:43.3]} 11.
Nbd2 {[%clk 0:02:14.2]} 11... f6 {[%clk 0:02:41.1]} 12. b3 {[%clk 0:02:05]}
12... Be7 {[%clk 0:02:36.7]} 13. Bb2 {[%clk 0:02:01.7]} 13... Ke8 {[%clk
0:02:35.6]} 14. Ne4 {[%clk 0:01:26.2]} 14... a4 {[%clk 0:02:31.3]} 15. Nxc5
{[%clk 0:01:23.5]} 15... Bxc5 {[%clk 0:02:32.2]} 16. Nd2 {[%clk 0:01:09.7]}
16... axb3 {[%clk 0:02:29.7]} 17. Bxb3 {[%clk 0:01:09.8]} 17... Na5 {[%clk
0:02:27.6]} 18. Ba2 {[%clk 0:01:02.2]} 18... Kf7 {[%clk 0:02:19.7]} 19. Rhc1
{[%clk 0:00:56.7]} 19... Rhd8 {[%clk 0:02:15.1]} 20. Nb3 {[%clk 0:00:42.8]}
20... Nxb3 {[%clk 0:02:05.7]} 21. Bxb3 {[%clk 0:00:43.7]} 21... Ra6 {[%clk
0:02:06.2]} 22. Rc2 {[%clk 0:00:08.5]} 22... Rb6 {[%clk 0:02:01.7]} 23. Ba2
{[%clk 0:00:07.1]} 23... Bf5 {[%clk 0:02:02.1]} 0-1

[Event "*** SCC Grand Prix: Titled Tuesday Blitz"]
[Site "Chess.com"]
[Date "2020.08.25"]
[Round "4"]
[White "carlsen1001"]
[Black "AndreyNeves"]
[Result "0-1"]
[WhiteElo "2392"]
[BlackElo "2183"]
[TimeControl "180+1"]
[EndTime "10:38:42 PDT"]
[Termination "AndreyNeves won by resignation"]

1. e4 {[%clk 0:03:00.9]} 1... c5 {[%clk 0:02:59.3]} 2. Nf3 {[%clk 0:03:00.4]}
2... Nc6 {[%clk 0:02:59.3]} 3. d4 {[%clk 0:03:00.6]} 3... cxd4 {[%clk
0:02:59.5]} 4. Nxd4 {[%clk 0:03:00.7]} 4... Nf6 {[%clk 0:03:00]} 5. Nc3 {[%clk
0:03:01.4]} 5... d6 {[%clk 0:03:00.3]} 6. Bb5 {[%clk 0:03:01.8]} 6... Bd7 {[%clk
0:02:59.2]} 7. Be3 {[%clk 0:03:02]} 7... g6 {[%clk 0:02:52.8]} 8. O-O {[%clk
0:03:01.5]} 8... Bg7 {[%clk 0:02:52.5]} 9. f3 {[%clk 0:03:01.3]} 9... O-O {[%clk
0:02:51.2]} 10. Kh1 {[%clk 0:03:00.2]} 10... a6 {[%clk 0:02:44.2]} 11. Be2
{[%clk 0:02:59.9]} 11... Rc8 {[%clk 0:02:37.3]} 12. Nd5 {[%clk 0:02:59.5]} 12...
Nxd4 {[%clk 0:02:18.2]} 13. Bxd4 {[%clk 0:02:55.2]} 13... e5 {[%clk 0:01:56.1]}
14. Bb6 {[%clk 0:02:50.3]} 14... Qe8 {[%clk 0:01:53.5]} 15. Nxf6+ {[%clk
0:02:49.8]} 15... Bxf6 {[%clk 0:01:51.4]} 16. Qxd6 {[%clk 0:02:49.5]} 16... Rc6
{[%clk 0:01:50.4]} 17. Qb4 {[%clk 0:02:47.2]} 17... Be7 {[%clk 0:01:43.8]} 18.
Qb3 {[%clk 0:02:44.7]} 18... Be6 {[%clk 0:01:43.7]} 19. Qe3 {[%clk 0:02:45.4]}
19... Rxc2 {[%clk 0:01:31.4]} 20. f4 {[%clk 0:02:18]} 20... exf4 {[%clk
0:01:18.3]} 21. Qd3 {[%clk 0:02:17.2]} 21... Qc6 {[%clk 0:01:13]} 22. Bd4 {[%clk
0:02:11.6]} 22... Rd8 {[%clk 0:01:04]} 23. Rad1 {[%clk 0:02:02]} 23... Rc4
{[%clk 0:00:56.5]} 0-1

[Event "*** SCC Grand Prix: Titled Tuesday Blitz"]
[Site "Chess.com"]
[Date "2020.08.25"]
[Round "4"]
[White "abykhovsky"]
[Black "Bodnar_Mykola"]
[Result "1-0"]
[WhiteElo "2770"]
[BlackElo "2497"]
[TimeControl "180+1"]
[EndTime "10:38:45 PDT"]
[Termination "abykhovsky won by resignation"]

1. d4 {[%clk 0:03:00.8]} 1... Nf6 {[%clk 0:02:59.9]} 2. Nf3 {[%clk 0:03:00.2]}
2... b6 {[%clk 0:02:59.2]} 3. Bg5 {[%clk 0:02:59.7]} 3... Bb7 {[%clk 0:02:58.8]}
4. e3 {[%clk 0:03:00.2]} 4... g6 {[%clk 0:02:58.7]} 5. c4 {[%clk 0:02:59.9]}
5... Bg7 {[%clk 0:02:58.7]} 6. Nc3 {[%clk 0:03:00]} 6... O-O {[%clk 0:02:59]} 7.
Bd3 {[%clk 0:03:00.5]} 7... c5 {[%clk 0:02:58.9]} 8. d5 {[%clk 0:03:00.7]} 8...
e6 {[%clk 0:02:58]} 9. e4 {[%clk 0:03:01.2]} 9... h6 {[%clk 0:02:55.2]} 10. Bh4
{[%clk 0:03:01.2]} 10... g5 {[%clk 0:02:53.3]} 11. Bg3 {[%clk 0:03:01.4]} 11...
exd5 {[%clk 0:02:51.8]} 12. cxd5 {[%clk 0:03:00.3]} 12... d6 {[%clk 0:02:49.6]}
13. O-O {[%clk 0:02:52]} 13... Re8 {[%clk 0:02:49.3]} 14. h3 {[%clk 0:02:50.5]}
14... Ba6 {[%clk 0:02:33.6]} 15. Re1 {[%clk 0:02:48.5]} 15... Nh5 {[%clk
0:02:21.2]} 16. Bh2 {[%clk 0:02:46.7]} 16... Bxd3 {[%clk 0:02:18.8]} 17. Qxd3
{[%clk 0:02:44.9]} 17... Nf4 {[%clk 0:02:17.4]} 18. Qd2 {[%clk 0:02:22.9]} 18...
Qf6 {[%clk 0:02:13.7]} 19. Bxf4 {[%clk 0:02:09.6]} 19... Qxf4 {[%clk 0:02:13.2]}
20. Qxf4 {[%clk 0:02:09.2]} 20... gxf4 {[%clk 0:02:14.1]} 21. Nb5 {[%clk
0:02:09.7]} 21... Re7 {[%clk 0:01:54.5]} 22. e5 {[%clk 0:01:57.4]} 22... dxe5
{[%clk 0:01:47.9]} 23. d6 {[%clk 0:01:57]} 23... Re8 {[%clk 0:01:48.3]} 24. Nc7
{[%clk 0:01:57]} 24... Nc6 {[%clk 0:01:48.4]} 25. Rad1 {[%clk 0:01:49]} 25... f6
{[%clk 0:01:30.4]} 26. d7 {[%clk 0:01:43.4]} 26... Reb8 {[%clk 0:01:19.3]} 27.
Rd6 {[%clk 0:01:36.8]} 27... Nd8 {[%clk 0:01:19.3]} 28. Nh4 {[%clk 0:01:37.2]}
28... Kf7 {[%clk 0:01:15.9]} 29. g3 {[%clk 0:01:27.7]} 29... Bf8 {[%clk
0:01:13.6]} 30. Rd5 {[%clk 0:01:21]} 30... Ne6 {[%clk 0:01:06.7]} 31. Nxa8
{[%clk 0:01:18.5]} 31... Rxa8 {[%clk 0:01:07.6]} 32. gxf4 {[%clk 0:01:12.3]}
32... exf4 {[%clk 0:01:00]} 33. Rxe6 {[%clk 0:01:11.1]} 1-0

[Event "*** SCC Grand Prix: Titled Tuesday Blitz"]
[Site "Chess.com"]
[Date "2020.08.25"]
[Round "4"]
[White "Euge_chess"]
[Black "LubovMarkelova"]
[Result "1-0"]
[WhiteElo "2070"]
[BlackElo "2224"]
[TimeControl "180+1"]
[EndTime "10:38:45 PDT"]
[Termination "Euge_chess won by resignation"]

1. e4 {[%clk 0:03:00.9]} 1... e5 {[%clk 0:02:59.5]} 2. Nf3 {[%clk 0:03:00.2]}
2... Nc6 {[%clk 0:02:59.9]} 3. Nc3 {[%clk 0:02:58.9]} 3... Nf6 {[%clk
0:02:56.3]} 4. Bb5 {[%clk 0:02:57.5]} 4... Bb4 {[%clk 0:02:56.7]} 5. O-O {[%clk
0:02:56.3]} 5... O-O {[%clk 0:02:56.2]} 6. Bxc6 {[%clk 0:02:53.4]} 6... dxc6
{[%clk 0:02:53.4]} 7. Nxe5 {[%clk 0:02:52.8]} 7... Re8 {[%clk 0:02:37.5]} 8. d4
{[%clk 0:02:30.9]} 8... c5 {[%clk 0:02:21.5]} 9. Bg5 {[%clk 0:02:05.6]} 9... h6
{[%clk 0:01:57.3]} 10. Bxf6 {[%clk 0:01:58]} 10... gxf6 {[%clk 0:01:07]} 11. Ng4
{[%clk 0:01:53.5]} 11... h5 {[%clk 0:00:19.3]} 12. Nh6+ {[%clk 0:01:30]} 12...
Kf8 {[%clk 0:00:09.8]} 13. Qxh5 {[%clk 0:01:27.4]} 13... Be6 {[%clk 0:00:06.5]}
14. d5 {[%clk 0:01:23.4]} 1-0

[Event "*** SCC Grand Prix: Titled Tuesday Blitz"]
[Site "Chess.com"]
[Date "2020.08.25"]
[Round "4"]
[White "Hikaru"]
[Black "crescentmoon2411"]
[Result "1-0"]
[WhiteElo "3220"]
[BlackElo "2766"]
[TimeControl "180+1"]
[EndTime "10:38:59 PDT"]
[Termination "Hikaru won by resignation"]

1. Nf3 {[%clk 0:03:00.9]} 1... Nf6 {[%clk 0:02:59.7]} 2. b3 {[%clk 0:03:01.1]}
2... d5 {[%clk 0:02:58.5]} 3. Bb2 {[%clk 0:03:01.4]} 3... Nbd7 {[%clk
0:02:55.2]} 4. e3 {[%clk 0:02:59]} 4... g6 {[%clk 0:02:53]} 5. c4 {[%clk
0:02:58.4]} 5... c6 {[%clk 0:02:51.5]} 6. d4 {[%clk 0:02:55.4]} 6... Bg7 {[%clk
0:02:49.7]} 7. Bd3 {[%clk 0:02:56]} 7... O-O {[%clk 0:02:49.3]} 8. O-O {[%clk
0:02:55.9]} 8... b6 {[%clk 0:02:42.3]} 9. Nbd2 {[%clk 0:02:54.8]} 9... Bb7
{[%clk 0:02:39.5]} 10. b4 {[%clk 0:02:53.2]} 10... a5 {[%clk 0:02:37.6]} 11. a3
{[%clk 0:02:47.9]} 11... axb4 {[%clk 0:02:24.4]} 12. axb4 {[%clk 0:02:48.8]}
12... dxc4 {[%clk 0:02:20]} 13. Bxc4 {[%clk 0:02:42.4]} 13... c5 {[%clk
0:02:17.6]} 14. Qb3 {[%clk 0:02:41.6]} 14... cxd4 {[%clk 0:02:03.2]} 15. Nxd4
{[%clk 0:02:40.9]} 15... Ne5 {[%clk 0:01:54.1]} 16. Be2 {[%clk 0:02:33.6]} 16...
Qd5 {[%clk 0:01:50.2]} 17. Qxd5 {[%clk 0:02:28.8]} 17... Nxd5 {[%clk 0:01:51.1]}
18. b5 {[%clk 0:02:29.3]} 18... Nd7 {[%clk 0:01:34.8]} 19. Bf3 {[%clk
0:02:21.6]} 19... e6 {[%clk 0:01:27.2]} 20. Nc4 {[%clk 0:02:20.7]} 20... Ne5
{[%clk 0:00:58.6]} 21. Bxd5 {[%clk 0:02:14.7]} 21... Rxa1 {[%clk 0:00:31.9]} 22.
Rxa1 {[%clk 0:02:12.8]} 22... Bxd5 {[%clk 0:00:24.9]} 23. Nxb6 {[%clk
0:02:12.8]} 23... Nc4 {[%clk 0:00:25.1]} 24. Nxd5 {[%clk 0:02:02.8]} 24... exd5
{[%clk 0:00:26]} 25. Bc3 {[%clk 0:02:03.1]} 25... Rb8 {[%clk 0:00:24.2]} 26. h4
{[%clk 0:02:01.2]} 26... h5 {[%clk 0:00:20.4]} 27. Ra6 {[%clk 0:02:01]} 27...
Kh7 {[%clk 0:00:12.2]} 28. Ra7 {[%clk 0:02:00.3]} 28... Kg8 {[%clk 0:00:10.2]}
29. Rd7 {[%clk 0:01:50.5]} 29... Na3 {[%clk 0:00:07.5]} 30. Rxd5 {[%clk
0:01:46.2]} 30... Bxd4 {[%clk 0:00:06.9]} 31. Bxd4 {[%clk 0:01:47.1]} 31... Nxb5
{[%clk 0:00:07]} 32. Be5 {[%clk 0:01:47.4]} 1-0